{"text_format":"1","workbook":"xlsx","n_sheets":1,"sheets":["2025"],"not_rendered":{"charts":0,"images":1,"macros":1,"external_links":0,"defined_names":5,"comments":0,"pivot_tables":0},"unopened":[],"bounds":{"document_bytes":16777216,"sheet_cells":100000,"rows_first":2000,"rows_last":500,"rows_between":2000,"halvings":0,"cell_chars":16384,"cell_head_chars":4096},"cells_cut":0,"cells_raw":0,"read":"whole","date_system":"1900"}

{"sheet":"2025","index":0,"n_rows":39,"n_cols":13,"rows_kept":39,"cut":false,"hidden":false,"merged":[[38,8,38,10],[32,2,32,4],[26,0,26,1],[34,0,34,4],[9,1,9,5],[10,1,10,5],[6,1,6,4],[7,1,7,4],[8,1,8,4],[14,3,14,4],[22,0,22,3],[20,0,20,1],[20,3,20,4],[19,3,19,4],[16,0,16,2],[14,0,14,1],[17,0,17,2],[17,3,17,4]]}
[null,null,"INSTRUCTIE VOOR HET INVULLEN",null,null,null,null,"Voor iedere deelnemer dient een apart formulier te worden ingevuld!"]
["1e","in alle lichtgrijze vakken typt u de gevraagde gegevens en u klikt in het gewenste keuzevakje"]
["2e","u zet een kruisje voor de aktiviteit(en) waaraan u wilt deelnemen"]
[null,"het totaal te betalen bedrag staat onderaan."]
["   3e ","na  betaling van het vermelde bedrag verzend u het formulier."]
[]
[null,"Inschrijfformulier  2025",null,null,null,null,null,null,{"$f":"IF(C12=TRUE,\"Dhr\",IF(C13=TRUE,\"Mevr\",\"\"))","v":""},{"$f":"CONCATENATE(A15,\". \",C15)","v":". "}]
[null,"zomerschool voor senioren almere",null,null,null,null,null,"geeft zich op voor de onderstaand aangekruiste activiteiten"]
[null,null,null,null,null,null,null,"Zet een X in de vakjes van de activiteit waaraan u wilt meedoen"]
[null,"Ondergetekende geeft zich hierbij op voor de hiernaast aangegeven activiteiten ",null,null,null,null,null,"X","Dat","Activiteit","Locatie","Kosten in  euro's","te betalen"]
[null,"tijdens de Zomerschool voor Senioren 2025 in Almere",null,null,null,null,null,null,"2025-07-15","Bustocht Varen over de Neder-Rijn","Muziekwijk-Haven",69,{"$f":"IF(H11=\"x\",L11,\"\")","v":""}]
[null,"Aanhef:",false,null,null,null,null,null,"2025-07-17","Workshop ‘draadfiguur maken’","BC Cobra (Marijke Bolt)",15,{"$f":"IF(H12=\"x\",L12,\"\")","v":""}]
[null,null,false,null,null,null,null,null,"2025-07-17","Golfclinic incl. materiaal","Golfclub Almeerderhout",40,{"$f":"IF(H13=\"x\",L13,\"\")","v":""}]
["Voorletters:",null,"naam","Geboortedatum: (dd-mm-jj)",null,null,null,null,"2025-07-22","Workshop Tai Chi","Sportpark Klein Brandt",10,{"$f":"IF(H14=\"x\",L14,\"\")","v":""}]
[null,null,null,null,null,null,null,null,"2025-07-22","Jeu de Boules","Sportpark Klein Brandt",15,{"$f":"IF(H15=\"x\",L15,\"\")","v":""}]
[null,null,null,null,null,null,null,null,"2025-07-24","Workshop Koken door mannen","BC De Ruimte A’Poort",5,{"$f":"IF(H16=\"x\",L16,\"\")","v":""}]
["Adres: Straat en nummer",null,null,"Postcode:",null,null,null,null,"2025-07-24","Lunch incl. non alcoh. drankjes","BC De Ruimte A’Poort",20,{"$f":"IF(H17=\"x\",L17,\"\")","v":""}]
[null,null,null,null,null,null,null,null,"2025-07-29","Bustocht naar de Waterbuffels in Heeswijk Dinther","Muziekwijk-Haven",56,{"$f":"IF(H18=\"x\",L18,\"\")","v":""}]
[null,null,null,null,null,null,null,null,"2025-07-31","Fietstocht naar Museumbos + lunch","BC Cobra",16,{"$f":"IF(H19=\"x\",L19,\"\")","v":""}]
["Telefoonnummer:",null,"E-mailadres:","Mobiel nr:",null,null,null,null,"2025-08-05","Workshop: wat kan werken met AI voor u betekenen??","Senior-Live",7,{"$f":"IF(H20=\"x\",L20,\"\")","v":""}]
[null,null,null,null,null,null,null,null,"2025-08-05","Lezing Marker Wadden","BC Cobra",10,{"$f":"IF(H21=\"x\",L21,\"\")","v":""}]
[null,null,null,null,null,null,null,null,"2025-08-07","Workshop Veilig het internet op","Senior-Live",7,{"$f":"IF(H22=\"x\",L22,\"\")","v":""}]
["IBAN Rekeningnummer (voor evt. teruggave activiteitengeld):",null,null,null,null,null,null,null,"2025-08-07","Workshop ‘Trooststeen maken’","BC Cobra (Marijke Bolt)",15,{"$f":"IF(H23=\"x\",L23,\"\")","v":""}]
[null,null,null,null,null,null,null,null,"2025-08-12","Fietstocht Regenboogbuurt en lunch","BC Cobra",18,{"$f":"IF(H24=\"x\",L24,\"\")","v":""}]
[null,null,null,null,null,null,null,null,"2025-08-14","Bustocht naar Het huis van Weldadigheid in Frederiksoord","Muziekwijk-Haven",55,{"$f":"IF(H25=\"x\",L25,\"\")","v":""}]
[null,null,null,null,null,null,null,null,"2025-08-19","Workshop Stoelyoga","BC Cobra",10,{"$f":"IF(H26=\"x\",L26,\"\")","v":""}]
["dieet",null,null,null,null,null,null,null,"2025-08-19","Midgetgolfen in Muiderberg","Muiderberg",18,{"$f":"IF(H27=\"x\",L27,\"\")","v":""}]
[null,null,null,null,null,null,null,null,"2025-08-21","Feestelijke afsluiting met lunchbuffet","BC De Ruimte A’Poort",35,{"$f":"IF(H28=\"x\",L28,\"\")","v":""}]
[null,null,null,null,null,null,null,null,null,null,null,"totaal",{"$f":"SUM(M11:M28)","v":0}]
[]
[]
[null,null,"omschrijving dieet overig"]
[null,null,null,null,null,null," Ik geef toestemming aan de stichting Zomerschool voor Senioren om mijn gegevens :"]
["Wil graag samen reizen met:",null,null,null,null,null,null,null," in 2025 op te slaan"]
[null,null,null,null,null,null,null,null,"mijn gegevens voor toekomstige activiteiten te delen binnen het bestuur van de stichting."]
[null,null,null,null,null,null,null,null," foto’s van activiteiten waar ik op sta te delen op de website en Facebook"]
[null,"Datum (dd-mm-jjjj):"]
[null,"Betaald:",null,null,null,null,null,null,"Handtekening deelnemer:"]
[null,null,null,{"$f":"M29","v":0}]